fUSD/lending_fUSD_20250204
["ID","MTS","AMOUNT","RATE_DAILY","PERIOD"]
[351628821,1738673434222,-500.0,9.713e-05,2]
[351628822,1738673434231,-2636.14,9.713e-05,2]
[351628823,1738673434241,-500.0,9.713e-05,2]
[351628824,1738673434251,-500.0,9.713e-05,2]
[351628825,1738673434261,-500.0,9.713e-05,2]
[351628826,1738673434270,-642.3777996,9.713e-05,2]
[351628827,1738673434280,-500.0,9.713e-05,2]
[351628828,1738673434292,-500.0,9.713e-05,2]
[351628829,1738673434302,-500.0,9.713e-05,2]
[351628830,1738673434313,-500.0,9.713e-05,2]
[351628831,1738673434323,-500.0,9.713e-05,2]
[351628832,1738673434333,-500.0,9.713e-05,2]
[351628833,1738673434342,-500.0,9.713e-05,2]
[351628834,1738673434352,-500.0,9.713e-05,2]
[351628835,1738673434361,-500.0,9.713e-05,2]
[351628836,1738673434371,-500.0,9.713e-05,2]
[351628837,1738673434381,-591.87,9.713e-05,2]
[351628838,1738673434391,-500.0,9.713e-05,2]
[351628839,1738673434401,-500.0,9.713e-05,2]
[351628840,1738673434411,-500.0,9.713e-05,2]
[351628841,1738673434421,-500.0,9.713e-05,2]
[351628842,1738673434431,-500.0,9.713e-05,2]
[351628843,1738673434442,-500.0,9.713e-05,2]
[351628844,1738673434452,-500.0,9.713e-05,2]
[351628845,1738673434462,-500.0,9.713e-05,2]
[351628846,1738673434473,-500.0,9.713e-05,2]
[351628847,1738673434483,-500.0,9.713e-05,2]
[351628848,1738673434493,-500.0,9.713e-05,2]
[351628849,1738673434502,-500.0,9.713e-05,2]
[351628850,1738673434512,-500.0,9.713e-05,2]
[351628851,1738673434522,-500.0,9.713e-05,2]
[351628852,1738673434531,-500.0,9.713e-05,2]
[351628853,1738673434541,-500.0,9.713e-05,2]
[351628854,1738673434550,-500.0,9.713e-05,2]
[351628855,1738673434560,-500.0,9.713e-05,2]
[351628856,1738673434570,-500.0,9.713e-05,2]
[351628857,1738673434581,-500.0,9.713e-05,2]
[351628858,1738673434591,-500.0,9.713e-05,2]
[351628859,1738673434602,-500.0,9.713e-05,2]
[351628860,1738673434612,-500.0,9.713e-05,2]
[351628861,1738673434623,-500.0,9.713e-05,2]
[351628862,1738673434632,-500.0,9.713e-05,2]
[351628863,1738673434641,-500.0,9.713e-05,2]
[351628864,1738673434651,-500.0,9.713e-05,2]
[351628865,1738673434660,-500.0,9.713e-05,2]
[351628866,1738673434671,-623.64363364,9.713e-05,2]
[351628867,1738673434680,-589.59,9.713e-05,2]
[351628868,1738673434690,-500.0,9.713e-05,2]
[351628869,1738673434699,-499.93,9.713e-05,2]
[351628870,1738673434708,-500.0,9.713e-05,2]
[351628871,1738673434717,-502.32,9.713e-05,2]
[351628872,1738673434726,-500.0,9.713e-05,2]
[351628873,1738673434735,-500.0,9.713e-05,2]
[351628874,1738673434744,-500.0,9.713e-05,2]
[351628875,1738673434754,-814.65,9.713e-05,2]
[351628876,1738673434763,-500.0,9.713e-05,2]
[351628877,1738673434773,-500.0,9.713e-05,2]
[351628878,1738673434782,-500.0,9.713e-05,2]
[351628879,1738673434791,-500.0,9.713e-05,2]
[351628880,1738673434800,-583.09,9.713e-05,2]
[351628881,1738673434810,-500.0,9.713e-05,2]
[351628882,1738673434823,-500.0,9.713e-05,2]
[351628883,1738673434833,-695.16,9.713e-05,2]
[351628884,1738673434842,-500.0,9.713e-05,2]
[351628885,1738673434851,-588.29,9.713e-05,2]
[351628886,1738673434861,-500.0,9.713e-05,2]
[351628887,1738673434871,-500.0,9.713e-05,2]
[351628888,1738673434879,-500.0,9.713e-05,2]
[351628889,1738673434889,-500.0,9.713e-05,2]
[351628890,1738673434899,-500.0,9.713e-05,2]
[351628891,1738673434908,-550.66,9.713e-05,2]
[351628892,1738673434917,-500.0,9.713e-05,2]
[351628893,1738673434927,-500.0,9.713e-05,2]
[351628894,1738673434937,-500.0,9.713e-05,2]
[351628895,1738673434947,-500.0,9.713e-05,2]
[351628896,1738673434957,-500.0,9.713e-05,2]
[351628897,1738673434967,-597.39,9.713e-05,2]
[351628898,1738673434978,-500.0,9.713e-05,2]
[351628899,1738673434988,-500.0,9.713e-05,2]
[351628900,1738673434998,-500.0,9.713e-05,2]
[351628901,1738673435008,-500.0,9.713e-05,2]
[351628902,1738673435017,-322.64,9.713e-05,2]
[351628903,1738673435027,-545.77,9.713e-05,2]
[351628904,1738673435037,-513.11,9.713e-05,2]
[351628905,1738673435046,-500.0,9.713e-05,2]
[351628906,1738673435056,-757.48,9.713e-05,2]
[351628907,1738673435069,-572.4,9.713e-05,2]
[351628908,1738673435078,-500.0,9.713e-05,2]
[351628909,1738673435088,-500.0,9.713e-05,2]
[351628910,1738673435098,-500.0,9.713e-05,2]
[351628911,1738673435108,-500.0,9.713e-05,2]
[351628912,1738673435117,-500.0,9.713e-05,2]
[351628913,1738673435127,-661.71,9.713e-05,2]
[351628914,1738673435137,-500.0,9.713e-05,2]
[351628915,1738673435147,-948.54,9.713e-05,2]
[351628916,1738673435155,-500.0,9.713e-05,2]
[351628917,1738673435164,-500.0,9.713e-05,2]
[351628918,1738673435173,-562.36,9.713e-05,2]
[351628919,1738673435183,-500.0,9.713e-05,2]
[351628920,1738673435193,-500.0,9.713e-05,2]
[351628921,1738673435202,-500.0,9.713e-05,2]
[351628922,1738673435212,-500.0,9.713e-05,2]
[351628923,1738673435221,-500.0,9.713e-05,2]
[351628924,1738673435231,-500.0,9.713e-05,2]
[351628925,1738673435240,-500.0,9.714e-05,2]
[351628926,1738673435249,-500.0,9.714e-05,2]
[351628927,1738673435258,-500.0,9.714e-05,2]
[351628928,1738673435268,-500.0,9.714e-05,2]
[351628929,1738673435277,-500.0,9.714e-05,2]
[351628930,1738673435286,-1000.0,9.714e-05,2]
[351628931,1738673435295,-500.0,9.714e-05,2]
[351628932,1738673435304,-297.77,9.714e-05,2]
[351628933,1738673435314,-547.94,9.714e-05,2]
[351628934,1738673435325,-701.02,9.714e-05,2]
[351628935,1738673435335,-527.39697031,9.75e-05,2]
[351628936,1738673435345,-895.68,9.75e-05,2]
[351628937,1738673435355,-472.90299359,9.75e-05,2]
[351628938,1738673435365,-500.0,9.75e-05,2]
[351628939,1738673435374,-1314.7618,9.751e-05,2]
[351628940,1738673435384,-500.0,9.751e-05,2]
[351628941,1738673435394,-500.0,9.751e-05,2]
[351628942,1738673435404,-500.0,9.751e-05,2]
[351628943,1738673435413,-500.0,9.751e-05,2]
[351628944,1738673435423,-500.0,9.751e-05,2]
[351628945,1738673435433,-500.0,9.751e-05,2]
[351628946,1738673435443,-500.0,9.751e-05,2]
[351628947,1738673435453,-500.0,9.751e-05,2]
[351628948,1738673435463,-500.0,9.751e-05,2]
[351628949,1738673435472,-500.0,9.751e-05,2]
[351628950,1738673435482,-500.0,9.751e-05,2]
[351628951,1738673435491,-500.0,9.751e-05,2]
[351628952,1738673435501,-500.0,9.751e-05,2]
[351628953,1738673435510,-500.0,9.751e-05,2]
[351628954,1738673435520,-500.0,9.751e-05,2]
[351628955,1738673435529,-500.0,9.751e-05,2]
[351628956,1738673435538,-500.0,9.751e-05,2]
[351628957,1738673435548,-613.91507717,9.751e-05,2]
[351628958,1738673435558,-353.29755416,9.751e-05,2]
[351628959,1738673435569,-500.0,9.751e-05,2]
[351628960,1738673435750,-500.0,9.751e-05,2]
[351628961,1738673435790,-500.0,9.751e-05,2]
[351628962,1738673435799,-500.0,9.751e-05,2]
[351628963,1738673435809,-366.91657481,9.751e-05,2]
[351628964,1738673435821,-1000.0,9.788e-05,2]
[351628965,1738673435831,-300.6898032,9.8e-05,2]
[351628966,1738673435841,-1000.0,9.8e-05,2]
[351628967,1738673435849,-3300.0,9.8e-05,3]
[351628968,1738673435872,-500.0,9.849e-05,2]
[351628969,1738673435884,-542.7,9.849e-05,2]
[351628970,1738673435894,-500.0,9.849e-05,2]
[351628971,1738673435905,-500.0,9.849e-05,2]
[351628972,1738673435915,-320.743963,9.849e-05,2]
[351628973,1738673435925,-517.41,9.849e-05,2]
[351628974,1738673435935,-500.0,9.849e-05,2]
[351628975,1738673435945,-500.0,9.849e-05,2]
[351628976,1738673435955,-500.0,9.849e-05,2]
[351628977,1738673435966,-334.563687,9.849e-05,2]
[351628978,1738673435975,-500.0,9.849e-05,2]
[351628979,1738673435985,-500.0,9.849e-05,2]
[351628980,1738673435995,-500.0,9.849e-05,2]
[351628981,1738673436006,-500.0,9.849e-05,2]
[351628982,1738673436015,-500.0,9.849e-05,2]
[351628983,1738673436025,-500.0,9.849e-05,2]
[351628984,1738673436035,-500.0,9.849e-05,2]
[351628985,1738673436046,-500.0,9.849e-05,2]
[351628986,1738673436055,-500.0,9.849e-05,2]
[351628987,1738673436067,-500.0,9.849e-05,2]
[351628988,1738673436077,-938.91,9.849e-05,2]
[351628989,1738673436087,-600.67,9.849e-05,2]
[351628990,1738673436097,-562.82,9.849e-05,2]
[351628991,1738673436106,-624.36,9.849e-05,2]
[351628992,1738673436114,-500.0,9.849e-05,2]
[351628993,1738673436123,-500.0,9.849e-05,2]
[351628994,1738673436132,-955.1,9.849e-05,2]
[351628995,1738673436142,-500.0,9.849e-05,2]
[351628996,1738673436152,-500.0,9.849e-05,2]
[351628997,1738673436160,-1726.87,9.849e-05,2]
[351628998,1738673436170,-949.5,9.849e-05,2]
[351628999,1738673436180,-924.88,9.849e-05,2]
[351629000,1738673436190,-500.0,9.849e-05,2]
[351629001,1738673436199,-500.0,9.849e-05,2]
[351629002,1738673436209,-618.6,9.849e-05,2]
[351629003,1738673436220,-500.0,9.849e-05,2]
[351629004,1738673436230,-500.0,9.849e-05,2]
[351629005,1738673436239,-500.0,9.849e-05,2]
[351629006,1738673436249,-500.0,9.849e-05,2]
[351629007,1738673436259,-500.0,9.849e-05,2]
[351629008,1738673436268,-549.7,9.849e-05,2]
[351629009,1738673436277,-833.42,9.849e-05,2]
[351629010,1738673436287,-500.0,9.849e-05,2]
[351629011,1738673436297,-500.0,9.849e-05,2]
[351629012,1738673436304,-745.81,9.849e-05,2]
[351629013,1738673436315,-500.0,9.849e-05,2]
[351629014,1738673436322,-500.0,9.849e-05,2]
[351629015,1738673436330,-500.0,9.849e-05,2]
[351629016,1738673436338,-500.0,9.849e-05,2]
[351629017,1738673436345,-500.0,9.849e-05,2]
[351629018,1738673436354,-559.78,9.849e-05,2]
[351629019,1738673436363,-500.0,9.849e-05,2]
[351629021,1738673436371,-595.14,9.849e-05,2]
[351629022,1738673436378,-500.0,9.849e-05,2]
[351629023,1738673436385,-500.0,9.849e-05,2]
[351629024,1738673436391,-500.0,9.849e-05,2]
[351629025,1738673436398,-1115.48,9.849e-05,2]
[351629026,1738673436406,-500.0,9.849e-05,2]
[351629027,1738673436413,-500.0,9.849e-05,2]
[351629028,1738673436420,-600.38,9.849e-05,2]
[351629029,1738673436427,-793.09,9.849e-05,2]
[351629030,1738673436434,-269.61953804,9.849e-05,2]
[351629031,1738673436441,-500.0,9.849e-05,2]
[351629032,1738673436448,-500.0,9.849e-05,2]
[351629033,1738673436455,-577.39,9.849e-05,2]
[351629034,1738673436463,-500.0,9.849e-05,2]
[351629035,1738673436469,-500.0,9.849e-05,2]
[351629036,1738673436477,-500.0,9.849e-05,2]
[351629037,1738673436485,-500.0,9.849e-05,2]
[351629038,1738673436492,-776.6,9.849e-05,2]
[351629039,1738673436499,-500.0,9.849e-05,2]
[351629040,1738673436508,-500.0,9.85e-05,2]
[351629041,1738673436515,-599.69,9.85e-05,2]
[351629042,1738673436522,-500.0,9.85e-05,2]
[351629043,1738673436529,-500.0,9.85e-05,2]
[351629044,1738673436536,-500.0,9.85e-05,2]
[351629045,1738673436543,-361.56,9.85e-05,2]
[351629046,1738673436550,-500.0,9.85e-05,2]
[351629047,1738673436558,-500.0,9.85e-05,2]
[351629048,1738673436566,-500.0,9.85e-05,2]
[351629049,1738673436574,-500.0,9.85e-05,2]
[351629050,1738673436581,-500.0,9.85e-05,2]
[351629051,1738673436590,-500.0,9.85e-05,2]
[351629052,1738673436598,-500.0,9.85e-05,2]
[351629053,1738673436605,-500.0,9.85e-05,2]
[351629054,1738673436612,-2636.14,9.85e-05,2]
[351629055,1738673436619,-500.0,9.85e-05,2]
[351629056,1738673436626,-500.0,9.85e-05,2]
[351629057,1738673436634,-500.0,9.85e-05,2]
[351629058,1738673436640,-500.0,9.85e-05,2]
[351629059,1738673436648,-500.0,9.85e-05,2]
[351629060,1738673436655,-500.0,9.85e-05,2]
[351629061,1738673436664,-500.0,9.85e-05,2]
[351629062,1738673436674,-500.0,9.85e-05,2]
[351629063,1738673436683,-500.0,9.85e-05,2]
[351629064,1738673436692,-500.0,9.85e-05,2]
[351629065,1738673436702,-500.0,9.85e-05,2]
[351629066,1738673436711,-500.0,9.85e-05,2]
[351629067,1738673436720,-500.0,9.85e-05,2]
[351629068,1738673436730,-500.0,9.85e-05,2]
[351629069,1738673436739,-500.0,9.85e-05,2]
[351629070,1738673436748,-500.0,9.85e-05,2]
[351629071,1738673436757,-491.36,9.85e-05,2]
[351629072,1738673436767,-500.0,9.85e-05,2]
[351629073,1738673436777,-500.0,9.85e-05,2]
[351629074,1738673436786,-500.0,9.85e-05,2]
[351629075,1738673436796,-500.0,9.85e-05,2]
[351629076,1738673436806,-500.0,9.85e-05,2]
[351629077,1738673436815,-500.0,9.85e-05,2]
[351629078,1738673436825,-500.0,9.85e-05,2]
[351629079,1738673436834,-631.30234122,9.85e-05,2]
[351629080,1738673436844,-500.0,9.85e-05,2]
[351629081,1738673436853,-500.0,9.85e-05,2]
[351629082,1738673436862,-470.84265521,9.85e-05,2]
[351629083,1738673436871,-500.0,9.85e-05,2]
[351629084,1738673436881,-500.0,9.85e-05,2]
[351629085,1738673436890,-500.0,9.85e-05,2]
[351629086,1738673436899,-229.15560491,9.85e-05,2]
[351629087,1738673436908,-500.0,9.85e-05,2]
[351629088,1738673436917,-500.0,9.85e-05,2]
[351629089,1738673436926,-500.0,9.85e-05,2]
[351629090,1738673436934,-589.59,9.85e-05,2]
[351629091,1738673436943,-500.0,9.85e-05,2]
[351629092,1738673436951,-500.0,9.85e-05,2]
[351629093,1738673436961,-502.32,9.85e-05,2]
[351629094,1738673436970,-500.0,9.85e-05,2]
[351629095,1738673436979,-500.0,9.85e-05,2]
[351629096,1738673436989,-814.65,9.85e-05,2]
[351629097,1738673436998,-500.0,9.85e-05,2]
[351629098,1738673437007,-515.80622925,9.85e-05,2]
[351629099,1738673437016,-500.0,9.85e-05,2]
[351629100,1738673437026,-500.0,9.85e-05,2]
[351629101,1738673437035,-583.09,9.85e-05,2]
[351629102,1738673437045,-500.0,9.85e-05,2]
[351629103,1738673437054,-500.0,9.85e-05,2]
[351629104,1738673437065,-695.16,9.85e-05,2]
[351629105,1738673437075,-500.0,9.85e-05,2]
[351629106,1738673437085,-588.29,9.85e-05,2]
[351629107,1738673437094,-500.0,9.85e-05,2]
[351629108,1738673437104,-500.0,9.85e-05,2]
[351629109,1738673437114,-500.0,9.85e-05,2]
[351629110,1738673437123,-500.0,9.85e-05,2]
[351629111,1738673437133,-550.66,9.85e-05,2]
[351629112,1738673437142,-500.0,9.85e-05,2]
[351629113,1738673437153,-500.0,9.85e-05,2]
[351629114,1738673437163,-597.39,9.85e-05,2]
[351629115,1738673437173,-500.0,9.85e-05,2]
[351629116,1738673437184,-500.0,9.85e-05,2]
[351629117,1738673437194,-545.77,9.85e-05,2]
[351629118,1738673437204,-500.0,9.85e-05,2]
[351629119,1738673437213,-757.48,9.85e-05,2]
[351629120,1738673437223,-572.4,9.85e-05,2]
[351629121,1738673437233,-500.0,9.85e-05,2]
[351629122,1738673437242,-500.0,9.85e-05,2]
[351629123,1738673437252,-500.0,9.85e-05,2]
[351629124,1738673437262,-500.0,9.85e-05,2]
[351629125,1738673437272,-500.0,9.85e-05,2]
[351629126,1738673437281,-661.71,9.85e-05,2]
[351629127,1738673437291,-500.0,9.85e-05,2]
[351629128,1738673437300,-948.54,9.85e-05,2]
[351629130,1738673437310,-562.36,9.85e-05,2]
[351629132,1738673437325,-500.0,9.85e-05,2]
[351629133,1738673437335,-500.0,9.85e-05,2]
[351629134,1738673437344,-500.0,9.85e-05,2]
[351629136,1738673437353,-500.0,9.85e-05,2]
[351629137,1738673437362,-500.0,9.85e-05,2]
[351629138,1738673437372,-500.0,9.851e-05,2]
[351629139,1738673437381,-500.0,9.851e-05,2]
[351629140,1738673437391,-354.15048478,9.851e-05,2]
[351629141,1738673437672,-145.84951522,9.851e-05,2]
[351629142,1738673437682,-160.20623478,9.851e-05,2]
[351629143,1738673437707,-339.79376522,9.851e-05,2]
[351629144,1738673437716,-500.0,9.851e-05,2]
[351629145,1738673437726,-263.76336953,9.851e-05,2]
[351629146,1738673437738,-367.94849695,9.851e-05,2]
[351629147,1738673437770,-368.28813352,9.851e-05,2]
[351629148,1738673437779,-304.14276719,9.851e-05,2]
[351629149,1738673437791,-195.85723281,9.851e-05,2]
[351629150,1738673437802,-547.94,9.851e-05,2]
[351629151,1738673437812,-256.60076719,9.851e-05,2]
[351629152,1738673437828,-342.33024557,9.851e-05,2]
[351629155,1738673438580,-102.08898724,9.851e-05,2]
[351629156,1738673438589,-895.68,9.887e-05,2]
[351629157,1738673438601,-266.66659269,9.887e-05,2]
[351629158,1738673438612,-233.33340731,9.887e-05,2]
[351629159,1738673438621,-500.0,9.888e-05,2]
[351629160,1738673438631,-356.83450191,9.888e-05,2]
[351629161,1738673438641,-500.0,9.888e-05,2]
[351629162,1738673438650,-500.0,9.888e-05,2]
[351629163,1738673438659,-550.18466232,9.888e-05,2]
[351629164,1738673438669,-171.75,9.888e-05,2]
[351629165,1738673438678,-500.0,9.888e-05,2]
[351629166,1738673438689,-500.0,9.888e-05,2]
[351629167,1738673438699,-500.0,9.888e-05,2]
[351629168,1738673438708,-500.0,9.888e-05,2]
[351629169,1738673438717,-500.0,9.888e-05,2]
[351629170,1738673438726,-500.0,9.888e-05,2]
[351629171,1738673438735,-500.0,9.888e-05,2]
[351629172,1738673438744,-500.0,9.888e-05,2]
[351629173,1738673438754,-500.0,9.888e-05,2]
[351629174,1738673438764,-500.0,9.888e-05,2]
[351629175,1738673438773,-500.0,9.888e-05,2]
[351629176,1738673438784,-500.0,9.888e-05,2]
[351629177,1738673438794,-500.0,9.888e-05,2]
[351629178,1738673438803,-500.0,9.888e-05,2]
[351629179,1738673438813,-600.0,9.9e-05,3]
[351629180,1738673438823,-1000.0,9.9e-05,2]
[351629181,1738673438832,-151.16772882,9.973e-05,2]
[351629182,1738673438841,-500.0,9.973e-05,2]
[351629183,1738673438851,-500.0,9.986e-05,2]
[351629184,1738673438861,-500.0,9.986e-05,2]
[351629185,1738673438870,-500.0,9.986e-05,2]
[351629186,1738673438880,-320.743963,9.986e-05,2]
[351629187,1738673438889,-517.41,9.986e-05,2]
[351629188,1738673438899,-500.0,9.986e-05,2]
[351629189,1738673438908,-500.0,9.986e-05,2]
[351629190,1738673438917,-500.0,9.986e-05,2]
[351629191,1738673438927,-334.563687,9.986e-05,2]
[351629192,1738673438936,-500.0,9.986e-05,2]
[351629193,1738673438945,-500.0,9.986e-05,2]
[351629194,1738673438955,-500.0,9.986e-05,2]
[351629195,1738673438965,-500.0,9.986e-05,2]
[351629196,1738673438975,-500.0,9.986e-05,2]
[351629197,1738673438986,-500.0,9.986e-05,2]
[351629198,1738673438995,-500.0,9.986e-05,2]
[351629199,1738673439005,-500.0,9.986e-05,2]
[351629200,1738673439015,-500.0,9.986e-05,2]
[351629201,1738673439024,-500.0,9.986e-05,2]
[351629202,1738673439033,-938.91,9.986e-05,2]
[351629203,1738673439043,-600.67,9.986e-05,2]
[351629204,1738673439052,-562.82,9.986e-05,2]
[351629205,1738673439062,-624.36,9.986e-05,2]
[351629206,1738673439074,-500.0,9.986e-05,2]
[351629207,1738673439084,-500.0,9.986e-05,2]
[351629208,1738673439094,-955.1,9.986e-05,2]
[351629209,1738673439103,-500.0,9.986e-05,2]
[351629210,1738673439112,-500.0,9.986e-05,2]
[351629211,1738673439121,-1726.87,9.986e-05,2]
[351629212,1738673439131,-949.5,9.986e-05,2]
[351629213,1738673439141,-924.88,9.986e-05,2]
[351629214,1738673439150,-500.0,9.986e-05,2]
[351629215,1738673439160,-500.0,9.986e-05,2]
[351629216,1738673439169,-618.6,9.986e-05,2]
[351629217,1738673439180,-500.0,9.986e-05,2]
[351629218,1738673439190,-500.0,9.986e-05,2]
[351629219,1738673439200,-500.0,9.986e-05,2]
[351629220,1738673439210,-500.0,9.986e-05,2]
[351629221,1738673439219,-500.0,9.986e-05,2]
[351629222,1738673439229,-549.7,9.986e-05,2]
[351629223,1738673439239,-833.42,9.986e-05,2]
[351629224,1738673439248,-500.0,9.986e-05,2]
[351629225,1738673439258,-500.0,9.986e-05,2]
[351629226,1738673439267,-745.81,9.986e-05,2]
[351629227,1738673439276,-500.0,9.986e-05,2]
[351629228,1738673439285,-500.0,9.986e-05,2]
[351629229,1738673439295,-500.0,9.986e-05,2]
[351629230,1738673439303,-500.0,9.986e-05,2]
[351629231,1738673439313,-500.0,9.986e-05,2]
[351629232,1738673439324,-559.78,9.986e-05,2]
[351629233,1738673439333,-500.0,9.986e-05,2]
[351629234,1738673439343,-595.14,9.986e-05,2]
[351629235,1738673439352,-500.0,9.986e-05,2]
[351629236,1738673439363,-500.0,9.986e-05,2]
[351629237,1738673439372,-500.0,9.986e-05,2]
[351629238,1738673439382,-1115.48,9.986e-05,2]
[351629239,1738673439391,-500.0,9.986e-05,2]
[351629240,1738673439400,-500.0,9.986e-05,2]
[351629241,1738673439410,-600.38,9.986e-05,2]
[351629242,1738673439419,-793.09,9.986e-05,2]
[351629243,1738673439429,-500.0,9.986e-05,2]
[351629244,1738673439438,-500.0,9.986e-05,2]
[351629245,1738673439447,-577.39,9.986e-05,2]
[351629246,1738673439457,-500.0,9.986e-05,2]
[351629247,1738673439467,-500.0,9.986e-05,2]
[351629248,1738673439476,-204.61204964,9.986e-05,2]
[351629249,1738673439489,-295.38795036,9.986e-05,2]
[351629250,1738673439498,-500.0,9.986e-05,2]
[351629251,1738673439508,-776.6,9.986e-05,2]
[351629252,1738673439518,-500.0,9.986e-05,2]
[351629253,1738673439527,-500.0,9.987e-05,2]
[351629254,1738673439536,-500.0,9.987e-05,2]
[351629255,1738673439546,-500.0,9.987e-05,2]
[351629256,1738673439554,-500.0,9.987e-05,2]
[351629257,1738673439563,-30.03534967,9.987e-05,2]
[351629258,1738673439577,-469.96465033,9.987e-05,2]
[351629259,1738673439591,-500.0,9.987e-05,2]
[351629260,1738673439601,-500.0,9.987e-05,2]
[351629261,1738673439611,-450.87020578,9.987e-05,2]
[351629262,1738673439622,-500.0,9.987e-05,2]
[351629263,1738673439632,-500.0,9.987e-05,2]
[351629264,1738673439642,-2636.14,9.987e-05,2]
[351629265,1738673439651,-648.67098559,9.987e-05,2]
[351629266,1738673439661,-500.0,9.987e-05,2]
[351629267,1738673439671,-500.0,9.987e-05,2]
[351629268,1738673439681,-500.0,9.987e-05,2]
[351629269,1738673439691,-500.0,9.987e-05,2]
[351629270,1738673439700,-500.0,9.987e-05,2]
[351629271,1738673439710,-500.0,9.987e-05,2]
[351629272,1738673439719,-500.0,9.987e-05,2]
[351629273,1738673439729,-69.29959177,9.987e-05,2]
[351629274,1738673439740,-430.70040823,9.987e-05,2]
[351629275,1738673439751,-437.02359803,9.987e-05,2]
[351629276,1738673439760,-500.0,9.987e-05,2]
[351629277,1738673439770,-500.0,9.987e-05,2]
[351629278,1738673439780,-500.0,9.987e-05,2]
[351629279,1738673439789,-500.0,9.987e-05,2]
[351629280,1738673439799,-500.0,9.987e-05,2]
[351629281,1738673439807,-500.0,9.987e-05,2]
[351629282,1738673439818,-500.0,9.987e-05,2]
[351629283,1738673439828,-500.0,9.987e-05,2]
[351629284,1738673439838,-500.0,9.987e-05,2]
[351629285,1738673439847,-500.0,9.987e-05,2]
[351629286,1738673439856,-500.0,9.987e-05,2]
[351629287,1738673439866,-500.0,9.987e-05,2]
[351629288,1738673439875,-500.0,9.987e-05,2]
[351629289,1738673439885,-500.0,9.987e-05,2]
[351629290,1738673439895,-500.0,9.987e-05,2]
[351629291,1738673439909,-500.0,9.987e-05,2]
[351629292,1738673439918,-500.0,9.987e-05,2]
[351629293,1738673439928,-500.0,9.987e-05,2]
[351629294,1738673439937,-500.0,9.987e-05,2]
[351629295,1738673439946,-589.59,9.987e-05,2]
[351629296,1738673439955,-500.0,9.987e-05,2]
[351629297,1738673439964,-500.0,9.987e-05,2]
[351629298,1738673439973,-502.32,9.987e-05,2]
[351629299,1738673439983,-500.0,9.987e-05,2]
[351629300,1738673439993,-500.0,9.987e-05,2]
[351629301,1738673440003,-537.96102231,9.987e-05,2]
[351629302,1738673440015,-276.68897769,9.987e-05,2]
[351629303,1738673440028,-500.0,9.987e-05,2]
[351629304,1738673440037,-500.0,9.987e-05,2]
[351629305,1738673440047,-583.09,9.987e-05,2]
[351629306,1738673440057,-500.0,9.987e-05,2]
[351629307,1738673440068,-500.0,9.987e-05,2]
[351629308,1738673440078,-695.16,9.987e-05,2]
[351629309,1738673440088,-500.0,9.987e-05,2]
[351629310,1738673440098,-588.29,9.987e-05,2]
[351629311,1738673440108,-500.0,9.987e-05,2]
[351629312,1738673440118,-500.0,9.987e-05,2]
[351629313,1738673440128,-500.0,9.987e-05,2]
[351629314,1738673440138,-500.0,9.987e-05,2]
[351629315,1738673440148,-550.66,9.987e-05,2]
[351629316,1738673440158,-500.0,9.987e-05,2]
[351629317,1738673440167,-500.0,9.987e-05,2]
[351629318,1738673440177,-567.63262779,9.987e-05,2]
[351629319,1738673440190,-29.75737221,9.987e-05,2]
[351629320,1738673440200,-500.0,9.987e-05,2]
[351629321,1738673440209,-500.0,9.987e-05,2]
[351629322,1738673440219,-545.77,9.987e-05,2]
[351629323,1738673440229,-500.0,9.987e-05,2]
[351629324,1738673440239,-757.48,9.987e-05,2]
[351629325,1738673440248,-572.4,9.987e-05,2]
[351629326,1738673440258,-500.0,9.987e-05,2]